Cogmind - Beta 13 @@@ ROGUE MODE // 2024.06.08 @ 02:49:21 Player: Rune Result: Destroyed by S-10 Pest with Light Assault Rifle Performance ------------- Evolutions (1) 500 Regions Visited (2) 400 Robots Destroyed (18) 90 Value Destroyed (386) 386 Prototype IDs (2) 40 Alien Tech Used (0) 0 Bonus (0) 0 TOTAL SCORE: 1416 Bonus ------- None Cogmind --------- Core Integrity 0/400 Matter 194/300 Energy 100/100 System Corruption 0% Temperature Cool (9) Movement Core (350) Ox6 Location -9/Materials Parts ------- > --- POWER (1) -------- (None) > --- PROPULSION (2) --- (None) > --- UTILITY (4) ------ Large Storage Unit Signal Interpreter > --- WEAPON (2) ------- (None) > --- INVENTORY (15) --- Heat Sink Small Laser Small Laser Backup Laser I Beam Cannon Peak State ------------ > --- POWER ------------ Ion Engine > --- PROPULSION ------- Light Treads Light Treads > --- UTILITY ---------- Heat Sink Large Storage Unit Signal Interpreter Backup Plating I > --- WEAPON ----------- Assault Rifle Light Cannon > --- INVENTORY -------- Heat Sink Small Laser Small Laser Backup Laser I Beam Cannon [Rating: 9] Favorites ----------- Power Ion Engine Engine Ion Engine Propulsion Aluminum Leg Treads Light Treads Leg Aluminum Leg Utility Large Storage Unit Device Heat Sink Storage Large Storage Unit Processor Visual Processing Unit Protection Backup Plating I Weapon Assault Rifle Energy Cannon Beam Cannon Ballistic Gun Assault Rifle Ballistic Cannon Light Cannon Launcher Grenade Launcher Build | -11 -10 -9 ------- Run | Yrd Mat Mat Slots Evolved 2 | . . 2 Power . | . . . Propulsion . | . . . Utility 2 | . . 2 Weapon . | . . . Parts Attached 25 | 6 17 2 Power 3 | 1 2 . Engine 3 | 1 2 . Core . | . . . Reactor . | . . . Propulsion 6 | 2 4 . Treads 2 | . 2 . Leg 4 | 2 2 . Wheel . | . . . Hover . | . . . Flight . | . . . Utility 6 | 1 3 2 Device 1 | . 1 . Storage 2 | 1 1 . Processor 2 | . 1 1 Hackware . | . . . Protection 1 | . . 1 Artifact . | . . . Weapon 10 | 2 8 . Energy Gun . | . . . Energy Cannon 1 | . 1 . Ballistic Gun 6 | 2 4 . Ballistic Cannon 1 | . 1 . Launcher 2 | . 2 . Special Weapon . | . . . Impact Weapon . | . . . Slashing Weapon . | . . . Piercing Weapon . | . . . Special Melee Weapon . | . . . Unidentified Prototypes . | . . . Parts Lost 11 | . 4 7 Power 1 | . . 1 Propulsion 4 | . 2 2 Utility 2 | . . 2 Weapon 4 | . 2 2 Highest Loss Streak 7 | . 2 7 To Critical Strikes 2 | . . 2 Average Slot Usage (%) 91 | . 92 82 Engine 13 | . 14 9 Treads 6 | . 4 16 Leg 18 | . 20 . Device 6 | . 5 10 Storage 13 | . 14 11 Processor 5 | . 4 9 Protection 1 | . . 8 Ballistic Gun 14 | . 15 8 Ballistic Cannon 6 | . 6 8 Launcher 4 | . 5 . Naked Turns . | . . . Heaviest Build 32 | 14 31 32 Greatest Support 40 | 20 40 40 Greatest Overweight (x) 8 | . 3 8 Average Overweight (x) . | . . . Largest Inventory Capacity 15 | 8 15 15 Average Capacity 14 | 6 14 15 Most Carried 13 | 4 13 7 Average Carried 5 | . 5 5 Final Capacity 15 | 8 15 15 Final Carried 7 | 1 7 5 Class Distribution -------------------- 64% | Mutant 35% | Scavenger-Mutant Dominant Class ---------------- Mutant | -10/Materials Scavenger-Mutant | -9/Materials Resources | -11 -10 -9 ----------- Run | Yrd Mat Mat Matter Collected 616 | 104 512 . Remotely . | . . . Salvage Created 380 | . 380 . Parts 36 | . 36 . Haulers Intercepted 1 | . 1 . Recyclers Shooed 2 | . 2 . Parts Field Recycled . | . . . Retrieved Matter . | . . . Parts Self-Destructed . | . . . Prevented . | . . . Kills | -11 -10 -9 ------- Run | Yrd Mat Mat Combat Hostiles Destroyed 10 | . 10 . Guns 4 | . 4 . Cannons 1 | . 1 . AOE 5 | . 5 . Classes Destroyed 8 | . 8 . Worker 1 | . 1 . Builder 2 | . 2 . Tunneler 1 | . 1 . Hauler 1 | . 1 . Mechanic 1 | . 1 . Watcher 2 | . 2 . Swarmer 3 | . 3 . Grunt 7 | . 7 . Best Kill Streak 5 | . 5 . Combat Bots Only 3 | . 3 . Max Kills in Single Turn 4 | . 4 . Gunslinging . | . . . Exploded 2 | . 2 . Melee . | . . . Uniques/NPCs Destroyed . | . . . Combat | -11 -10 -9 -------- Run | Yrd Mat Mat Hostile Shots Fired 245 | . 90 155 Missed 65 | . 23 42 Damage Taken 1888 | . 809 1079 Core 503 | . 98 405 Absorbed by Shields . | . . . Core Remaining (%) 80 | 100 60 . Volleys Fired 50 | . 45 5 Largest 2 | . 2 2 Hottest 80 | . 80 55 Shots Fired 92 | . 82 10 Gun 58 | . 53 5 Cannon 20 | . 15 5 Launcher 14 | . 14 . Special . | . . . Kinetic 77 | . 67 10 Thermal 1 | . 1 . Explosive 14 | . 14 . Electromagnetic . | . . . Robot Hit Streak 6 | . 6 3 Robot Miss Streak 4 | . 4 2 Penetration Max . | . . . Secondary Targets 2 | . 2 . Max Gunslinging Chain 1 | . 1 . Shots Hit Robots 40 | . 34 6 Core Hits 34 | . 34 . Critical Kills . | . . . Critical Parts Destroyed . | . . . Critical Strikes . | . . . Melee Attacks . | . . . Impact . | . . . Slashing . | . . . Piercing . | . . . Sneak Attacks . | . . . Combat Hostiles . | . . . Follow-up Attacks . | . . . Damage Inflicted 1132 | . 1050 82 Guns 375 | . 332 43 Cannons 212 | . 174 38 Explosions 538 | . 538 . Melee . | . . . Ramming 7 | . 6 1 Kinetic 570 | . 489 81 Thermal 17 | . 17 . Explosive 538 | . 538 . Electromagnetic . | . . . Impact . | . . . Slashing . | . . . Piercing . | . . . Highest Corruption . | . . . Average Corruption . | . . . Corruption Purged . | . . . Corruption Blocked . | . . . Overload Shots . | . . . Overflow Damage 9 | . 9 . Projectiles 6 | . 6 . Explosions 3 | . 3 . Melee . | . . . Knockbacks . | . . . Impact . | . . . Kinetic . | . . . Secondary . | . . . Self-Inflicted Damage 22 | . 22 . Shots 1 | . 1 . Rammed 2 | . . 2 Targets Rammed 4 | . 2 2 Kicked 2 | . 2 . Crushed . | . . . Highest Temperature 40 | . 40 . Average Temperature 8 | . 8 . Received Heat Transfer 621 | . 459 162 Siege Activations . | . . . Robots Corrupted . | . . . Combat Hostiles . | . . . Parts Fried . | . . . Impact Corruptions . | . . . Robots Melted . | . . . Combat Hostiles . | . . . Parts Melted . | . . . Heat Transferred 37 | . 37 . Parts Sabotaged . | . . . Parts Stolen . | . . . Parts Stripped . | . . . Power Chain Reactions . | . . . Alert | -11 -10 -9 ------- Run | Yrd Mat Mat Peak Influence 232 | . 232 81 Initial 21 | . . 21 Average 67 | . 75 43 Maximum Alert Level 1 | . 1 . Low Security (%) 97 | 100 97 100 Level 1 2 | . 2 . Level 2 . | . . . Level 3 . | . . . Level 4 . | . . . Level 5 . | . . . High Security . | . . . Max Security . | . . . Squads Dispatched 7 | . 4 3 Investigation 2 | . 1 1 Extermination . | . . . Reinforcement 5 | . 3 2 Assault . | . . . Garrison . | . . . Intercept . | . . . Searches Triggered . | . . . Construction Impeded . | . . . Haulers Reinforced . | . . . Active Scanning Responses . | . . . Cargo Convoy Interrupts . | . . . Stealth | -11 -10 -9 --------- Run | Yrd Mat Mat Distress Signals 3 | . 2 1 Communications Jammed . | . . . Distress Signals . | . . . Times Spotted 30 | . 16 14 Peak Tracking Total 12 | . 3 12 Tactical Retreats 1 | . 1 . Traps | -11 -10 -9 ------- Run | Yrd Mat Mat Traps Triggered 1 | . 1 . Indirectly . | . . . Trap Hack Attempts . | . . . Triggered . | . . . Disarmed . | . . . Reprogrammed . | . . . Reused . | . . . Traps Extracted . | . . . Installed . | . . . Triggered . | . . . Machines | -11 -10 -9 ---------- Run | Yrd Mat Mat Machines Disabled 4 | . 3 1 Max in Single Turn 2 | . 2 1 Machines Repaired . | . . . Machines Dismantled . | . . . Machines Sabotaged . | . . . Overloaded Fab Kills . | . . . Hacking | -11 -10 -9 --------- Run | Yrd Mat Mat Machines Accessed 5 | . 4 1 Terminals 5 | . 4 1 Fabricators . | . . . Repair Stations . | . . . Recycling Units . | . . . Scanalyzers . | . . . Garrison Access . | . . . Total Hacks 13 | . 11 2 Successful 4 | . 4 . Failed 9 | . 7 2 Catastrophic 4 | . 3 1 Database Lockouts . | . . . Manual . | . . . Terminals 13 | . 11 2 Fabricators . | . . . Repair Stations . | . . . Recycling Units . | . . . Scanalyzers . | . . . Garrison Access . | . . . Terminal Hacks 4 | . 4 . Prototype ID Bank 1 | . 1 . Emergency Access Points 1 | . 1 . Transport Status 1 | . 1 . Registered Components 1 | . 1 . Fabricator Hacks . | . . . Repair Station Hacks . | . . . Recycling Unit Hacks . | . . . Scanalyzer . | . . . Garrison Access Hacks . | . . . Unauthorized Hacks . | . . . Terminals . | . . . Fabricators . | . . . Repair Stations . | . . . Recycling Units . | . . . Scanalyzers . | . . . Garrison Access . | . . . Data Cores Recovered . | . . . Used . | . . . Hacking Detections 4 | . 3 1 Full Trace Events 2 | . 1 1 Feedback Events . | . . . Feedback Blocked . | . . . Robot Schematics Acquired . | . . . Robots Built . | . . . Authchips . | . . . Time . | . . . Total Robot Build Rating . | . . . Part Schematics Acquired . | . . . Parts Built . | . . . Authchips . | . . . Time . | . . . Total Part Build Rating . | . . . Parts Repaired . | . . . Time . | . . . Parts Recycled . | . . . Recycled Matter . | . . . Retrieved Matter . | . . . Retrieved Components . | . . . Parts Scanalyzed . | . . . Part Schematics Acquired . | . . . Parts Damaged . | . . . Bothacking | -11 -10 -9 ------------ Run | Yrd Mat Mat Used RIF Installer . | . . . Robots Hacked . | . . . Non-combat . | . . . Combat . | . . . Robot Hacks Applied . | . . . Relay Couplers Released . | . . . Fabnet Peak Effective % . | . . . Robots Rewired . | . . . Allies Hacked . | . . . Hacks Repelled . | . . . Allies | -11 -10 -9 -------- Run | Yrd Mat Mat Total Allies . | . . . Largest Group . | . . . Highest-Rated Group . | . . . Highest-Rated Ally . | . . . Total Orders . | . . . Ally Attacks . | . . . Total Damage . | . . . Kills . | . . . Allies Corrupted . | . . . Allies Melted . | . . . Intel | -11 -10 -9 ------- Run | Yrd Mat Mat Robot Analysis Total . | . . . Derelict Logs Recovered . | . . . Drone Launches . | . . . Drone Recoveries . | . . . Exploration | -11 -10 -9 ------------- Run | Yrd Mat Mat Turns Passed 1366 | 76 1120 170 Spaces Moved 621 | 58 486 77 Core 19 | 10 . 9 Treads 187 | . 119 68 Legs 415 | 48 367 . Wheels . | . . . Hover . | . . . Flight . | . . . Fastest Speed 50 | 50 120 160 Average Speed 184 | 107 192 188 Slowest Speed 450 | 120 330 450 Overloaded Moves . | . . . Propulsion Burnouts . | . . . Robots Hopped . | . . . Cave-ins Triggered . | . . . Exploration Rate (%) 25 | 4 59 14 Regions Visited 2 Branch Regions . Pre-discovered Areas . | . . . Known Exits Taken . | . . . Unknown Exits Taken 2 | 1 1 . Scrap Searched . | . . . Spaces Dug . | . . . Terrain Destroyed 31 | . 31 . Melee . | . . . Projectile . | . . . AOE 31 | . 31 . Terrain Rammed . | . . . Walls Destroyed . | . . . Machines Disabled . | . . . Actions | -11 -10 -9 --------- Run | Yrd Mat Mat Total 756 | 72 598 86 Wait 8 | . 8 . Move 619 | 57 485 77 Hop . | . . . Pick Up 30 | 8 22 . Fast Attach . | . . . Attach 22 | 6 14 2 Detach 9 | . 9 . Swap 3 | . 3 . Drop 11 | 1 10 . Fire 50 | . 45 5 Melee . | . . . Ram 2 | . . 2 Kick 2 | . 2 . Crush . | . . . Escape Stasis . | . . . Rewire . | . . . Trap . | . . . Miscellaneous . | . . . Route ------- -11/Scrapyard -10/Materials (discovered 2 exits: *Mat x2) -9/Materials History --------- Turn | Location | Event 6 | -11/Scrapyard | Discovered new exit (range 16) 77 | -11/Scrapyard | Entered Materials 314 | -10/Materials | Build established: Mutant 489 | -10/Materials | Discovered new exit (range 16) 1016 | -10/Materials | Discovered new exit (range 15) 1197 | -10/Materials | Entered another Materials area 1197 | -9/Materials | Evolved 2 slots: Utility x2 1296 | -9/Materials | Build established: Scavenger-Mutant 1357 | -9/Materials | Core integrity fell below 50% 1365 | -9/Materials | Core integrity fell below 20% 1367 | -9/Materials | Destroyed by S-10 Pest with Light Assault Rifle Last Messages --------------- reinforcements to Terminal M004. Integration Channel disabled. O-16 Technician: "IFF HANDSHAKE FAILED. SECURING TERMINAL." Connecting with Terminal... ALERT: Suspicious activity at Terminal M001. Dispatching Investigation squad. K-01 Serf collects debris. S-10 Pest destroyed. Critical hit (Destroy). Lgt. Treads destroyed. Lgt. Cannon destroyed. Assault Rifle destroyed. Lgt. Treads destroyed. Ion Engine destroyed. Slammed into S-10 Pest. S-10 Pest destroyed. Backup Plating I destroyed. Critical hit (Destroy). Heat Sink destroyed. Map ----- +----------------------------------------------------+ | ?????????????????????????????????????????????????? | | ?????????????????????????????????????????????????? | | ?????????????????????????????????????????????????? | | ?????????????????????????????????????????????????? | | ?????????????????????????????????????????????????? | | ?????????????????????????????????????????????????? | | ?????????????????????????????????????????????????? | | ?????????????????????????????????????????????????? | | ?????????????????????????????????????????#######?? | | ?????????????????????????????????????????# #?? | | ?????????????????????????????????????????# #?? | | ?????????????????????????????????????????# #?? | | ?????????????????????????????????????????# #?? | | ?????????????????????????????????????????# #?? | | ?????????????????????????????????????????# #?? | | ?????????????????????????????????????????# #?? | | ?????????????????????????????????????????# ### | | ?????????????????????????????????????????# | | ?????????????????????????????????????????# | | ???????????????????????????????????##+#### | | ???????????????????????????????????# | | ???????????????????????????????????# " " " | | ???????????????????????????????##### "R" " | | ???????????????????????#####???# """ " | | ????????????????????#### #????# # | | ????????????????????# g @ #???????# | | ????????????????????# ##%* #???????# #### | | ???????????????????????# g #???????# #??? | | ???????????????????????#srY#???????# ##### ##??? | | ???????????????????????#s #???????# #???# #???? | | ???????????????????????# #???????+ #???# #???? | | ???????????????????????###Y#???????# #???# #???? | | ?????????????????????????# #???????# #####+####? | | ?????????????????????????# #???????# # #? | | ?????????????????????????#r#???????# # #? | | ?????????????????????????# #???????# # #? | | ???????????????????????### ######### # #? | | ???????????????###+##### + #? | | ??????????? # #? | | ??????????? =% # #? | | ??????????? [ "# #? | | ???????????? ### " " " "# #? | | ???????????????# """ """ "" "##########? | | ???????????????# """ """ """ T#?????????? | | ???????????????# ? """ """ """ "#?????????? | | ??????????????????? "" "" "" "#?????????? | | ???????????????????""" """ """ "#?????????? | | ???????????????????"" "" "" ##????????? | | ????????????????????" ???" "" #????????? | | ????????????????????"??? " " #????????? | +----------------------------------------------------+ Best States ------------- Heat Dissipation 38 Energy Generation 10 Energy Capacity 250 Matter Stores 282 Matter Capacity 300 Sight Range 18 Terrain Scan Density 10 Armor Coverage 80 Evasion (%) 55 Recoil Reduction 2 Item Schematics ----------------- None Robot Schematics ------------------ None Fabricated ------------ Nothing Alien Tech Used ----------------- None Achievements -------------- None Challenges ------------ None Game ------ Seed AuthchipEncryptedBank Manual? 0 Play Time 00:18:48 Cumulative 8.3 hours Start 2024.06.06 @ 15:17:08 End 2024.06.08 @ 02:49:21 Sessions 3 Manual Loads 0 Difficulty Rogue Special Mode None Game No. 22 Rogue 22 Adventurer 0 Explorer 0 Win Type - Total 0 Types 0/0/0/0/0/0/0/0/0 Lore% 2 Gallery% 12 Achievement% 10 Wizard Run 0 Options --------- Layout 1 ASCII 0 Keyboard 1 Movement Numpad Keybinds 0 Fullscreen 1 Font 32/SmallcapsGlow Map View 50x35 Zoom Use 0% Tactical HUD 0 Map Filters NONE Filters NONE Steam 1 RUN: ab400835-12d7-4952-a6f2-fd194f8ac2e1